bitfinex-derivatives/quotes_BTCF0:USTF0_20241109
["timestamp","ask_amount","ask_price","bid_price","bid_amount"]
[1731180823819,0.24360338,76285.0,76284.0,0.15773809]
[1731180827029,0.35747944,76285.0,76283.0,0.02621816]
[1731180827226,0.19236941,76284.0,76283.0,0.02621816]
[1731180827424,0.13707089,76284.0,76283.0,0.02621816]
[1731180827624,0.39037329,76284.0,76283.0,0.02621816]
[1731180828327,0.45321225,76284.0,76283.0,0.02621816]
[1731180829326,0.78365329,76284.0,76283.0,0.02621816]
[1731180829629,0.065518,76273.0,76266.0,0.065523]
[1731180829933,0.3608,76271.0,76266.0,0.07806262]
[1731180830133,0.10073067,76270.0,76269.0,0.01416747]
[1731180830319,0.29811945,76270.0,76269.0,0.01416747]
[1731180831322,0.26774803,76270.0,76269.0,0.01416747]
[1731180833226,0.26774803,76270.0,76269.0,0.07968847]
[1731180834825,0.07035925,76270.0,76269.0,0.15775109]
[1731180835629,0.04700168,76270.0,76269.0,0.15775109]
[1731180835826,0.3608,76286.0,76281.0,0.06551]
[1731180836029,0.3608,76286.0,76269.0,0.15775109]
[1731180836030,0.07223534,76285.0,76284.0,0.065508]
[1731180836338,0.22038687,76285.0,76284.0,0.065508]
[1731180836628,0.22038687,76285.0,76284.0,0.07967547]
[1731180837641,0.28589387,76285.0,76284.0,0.07967547]
[1731180838532,0.33335136,76285.0,76284.0,0.07967547]
[1731180839132,0.28589387,76285.0,76284.0,0.07967547]
[1731180840132,0.26116607,76285.0,76284.0,0.07967547]
[1731180842131,0.19565907,76285.0,76284.0,0.07967547]
[1731180843241,0.24271307,76285.0,76284.0,0.07967547]
[1731180844034,0.26751128,76285.0,76284.0,0.07967547]
[1731180844931,0.26751128,76285.0,76284.0,0.15773809]
[1731180845333,0.32211645,76285.0,76284.0,0.15773809]
[1731180847035,0.38762345,76285.0,76284.0,0.15773809]
[1731180847236,0.32211645,76285.0,76284.0,0.15773809]
[1731180847838,0.32211645,76285.0,76284.0,0.09223009]
[1731180848039,0.065513,76278.0,76275.0,0.065515]
[1731180848244,0.12645738,76277.0,76275.0,0.07806262]
[1731180848441,0.47467606,76279.0,76275.0,0.07806262]
[1731180848442,0.12644708,76276.0,76275.0,0.14357862]
[1731180848836,0.12644708,76276.0,76275.0,0.15774609]
[1731180851243,0.22179977,76276.0,76275.0,0.15774609]
[1731180854256,0.22179977,76276.0,76275.0,0.07968347]
[1731180854455,0.065518,76272.0,76270.0,0.06552]
[1731180854745,0.02534358,76271.0,76270.0,0.06552]
[1731180855050,0.5821955,76271.0,76270.0,0.14358262]
[1731180855453,0.58705192,76271.0,76270.0,0.06552]
[1731180855837,0.56083101,76271.0,76270.0,0.06552]
[1731180856243,0.62635001,76271.0,76270.0,0.06552]
[1731180856548,0.58687117,76271.0,76270.0,0.06552]
[1731180860851,0.58687117,76271.0,76270.0,0.14358262]
[1731180861155,0.22607117,76271.0,76270.0,0.14358262]
[1731180864743,0.02604016,76271.0,76270.0,0.14358262]
[1731180864947,0.3608,76280.0,76279.0,0.065512]
[1731180865161,0.40628631,76280.0,76279.0,0.065512]
[1731180865458,0.40628631,76280.0,76279.0,0.14357462]
[1731180865459,0.68066184,76280.0,76279.0,0.14357462]
[1731180866053,0.60401492,76280.0,76279.0,0.14357462]
[1731180866250,0.62789032,76280.0,76279.0,0.14357462]
[1731180868762,0.60393785,76280.0,76279.0,0.14357462]
[1731180869153,0.40620924,76280.0,76279.0,0.14357462]
[1731180870256,0.04540924,76280.0,76279.0,0.14357462]
[1731180872155,0.04581809,76280.0,76279.0,0.07806262]
[1731180872357,0.04579288,76280.0,76279.0,0.07806262]
[1731180872559,0.3608,76288.0,76279.0,0.07806262]
[1731180872861,0.3608,76288.0,76286.0,0.065506]
[1731180872862,0.26540861,76287.0,76286.0,0.065506]
[1731180873061,0.24136074,76287.0,76286.0,0.065506]
[1731180873252,0.19544598,76287.0,76286.0,0.14356862]
[1731180878147,0.19544598,76287.0,76286.0,0.065506]
[1731180878352,0.19544598,76287.0,76286.0,0.14356862]
[1731180879766,0.1,76287.0,76286.0,0.14356862]
[1731180881469,0.1,76287.0,76286.0,0.21666416]
[1731180884766,0.1,76287.0,76286.0,0.14356862]
[1731180884962,0.1,76287.0,76286.0,0.21666416]
[1731180887355,0.1,76287.0,76286.0,0.60990416]
[1731180889281,0.1,76287.0,76286.0,0.21666416]
[1731180900174,0.1,76287.0,76286.0,0.24681559]
[1731180906082,0.1,76287.0,76286.0,0.14356862]
[1731180906275,0.14614102,76287.0,76279.0,0.136]
[1731180906474,0.14774102,76286.0,76279.0,0.21406262]
[1731180906682,0.04614102,76285.0,76279.0,0.21406262]
[1731180906980,0.1016,76286.0,76285.0,0.065507]
[1731180907181,0.1016,76286.0,76285.0,0.02346262]
[1731180907182,0.14724523,76286.0,76285.0,0.02346262]
[1731180907588,0.065507,76285.0,76279.0,0.065512]
[1731180907880,0.07309554,76280.0,76279.0,0.065512]
[1731180908079,0.11874077,76280.0,76279.0,0.065512]
[1731180908379,0.31442805,76280.0,76279.0,0.065512]
[1731180908579,0.31442805,76280.0,76278.0,0.49778]
[1731180908878,0.04564523,76279.0,76278.0,0.4971]
[1731180909781,0.04564523,76279.0,76278.0,0.562613]
[1731180910277,0.065514,76277.0,76275.0,0.065515]
[1731180910477,0.11813765,76276.0,76275.0,0.065516]
[1731180910675,0.31586993,76276.0,76275.0,0.065516]
[1731180911072,0.27082782,76276.0,76275.0,0.065516]
[1731180914477,0.19773228,76276.0,76275.0,0.065516]
[1731180914979,0.19693613,76278.0,76277.0,0.065514]
[1731180915182,0.10523181,76279.0,76277.0,0.065514]
[1731180915379,0.19716968,76278.0,76277.0,0.065514]
[1731180918486,0.065517,76274.0,76273.0,0.065517]
[1731180918679,0.13861254,76274.0,76273.0,0.065517]
[1731180918880,0.33588328,76274.0,76273.0,0.065517]
[1731180920583,0.19727074,76274.0,76273.0,0.065517]
[1731180921085,0.1966136,76277.0,76274.0,0.065516]
[1731180921385,0.13860854,76278.0,76274.0,0.065516]
[1731180921583,0.19761373,76277.0,76274.0,0.065516]
[1731180922186,0.19761373,76277.0,76268.0,0.56158]
[1731180922187,0.065517,76273.0,76270.0,0.06552]
[1731180922386,0.065517,76273.0,76268.0,0.56158]
[1731180922387,0.17321354,76272.0,76271.0,0.065519]
[1731180922589,0.36922976,76272.0,76271.0,0.065519]
[1731180922784,0.17321354,76272.0,76271.0,0.065519]
[1731180923087,0.3697326,76272.0,76271.0,0.065519]
[1731180925485,0.3042146,76272.0,76271.0,0.065519]
[1731180926585,0.23111906,76272.0,76271.0,0.065519]
[1731180928092,0.19651906,76272.0,76271.0,0.065519]
[1731180928500,0.065515,76277.0,76274.0,0.065516]
[1731180928692,0.1964708,76276.0,76274.0,0.065516]
[1731180928886,0.065515,76277.0,76275.0,0.065516]
[1731180929284,0.19720318,76276.0,76275.0,0.065516]
[1731180929985,0.19720318,76278.0,76277.0,0.065514]
[1731180930182,0.20857554,76285.0,76273.0,0.09655816]
[1731180930384,0.20857554,76285.0,76282.0,0.06551]
[1731180930385,0.07309554,76285.0,76282.0,0.06551]
[1731180930592,0.39219199,76283.0,76282.0,0.06551]
[1731180930795,0.5875941,76283.0,76282.0,0.06551]
[1731180933902,0.6531031,76283.0,76282.0,0.06551]
[1731180937295,0.5875941,76283.0,76282.0,0.06551]
[1731180938100,0.61119127,76283.0,76282.0,0.06551]
[1731180938605,0.65591705,76283.0,76282.0,0.06551]
[1731180939501,0.61119127,76283.0,76282.0,0.06551]
[1731180942303,0.5875941,76283.0,76282.0,0.06551]
[1731180944898,0.63237599,76283.0,76277.0,0.07309554]
[1731180945094,0.02322391,76282.0,76277.0,0.09655816]
[1731180945307,0.63313599,76283.0,76282.0,0.06551]
[1731180945507,0.4601961,76283.0,76282.0,0.06551]
[1731180945712,0.6561281,76283.0,76282.0,0.06551]
[1731180946297,0.06800411,76283.0,76282.0,0.08897262]
[1731180946813,0.06800411,76283.0,76282.0,0.12187262]
[1731180948599,0.02322222,76283.0,76282.0,0.12187262]
[1731180948800,0.131346,76287.0,76286.0,0.065506]
[1731180948998,0.15396622,76287.0,76286.0,0.065506]
[1731180949196,0.35020293,76287.0,76286.0,0.08896862]
[1731180949612,0.32758271,76287.0,76286.0,0.08896862]
[1731180953607,0.32758271,76287.0,76274.0,0.03930473]
[1731180953806,0.07309554,76275.0,76271.0,0.38426262]
[1731180954006,0.07309554,76275.0,76274.0,0.065517]
[1731180954406,0.27040659,76275.0,76274.0,0.08897962]
[1731180956414,0.19731105,76275.0,76274.0,0.08897962]
[1731180956611,0.23958423,76275.0,76274.0,0.08897962]
[1731180956925,0.04227318,76275.0,76274.0,0.08897962]
[1731180957114,0.23948017,76275.0,76274.0,0.08897962]
[1731180958915,0.26137894,76275.0,76274.0,0.08897962]
[1731180959117,0.23948017,76275.0,76274.0,0.08897962]
[1731180959318,0.23948017,76275.0,76274.0,0.065517]
[1731180959319,0.43196101,76275.0,76274.0,0.065517]
[1731180963027,0.065519,76272.0,76270.0,0.06552]
[1731180963219,0.11530337,76271.0,76270.0,0.06552]
[1731180963525,0.31078068,76271.0,76270.0,0.08898262]
[1731180963721,0.26857285,76271.0,76270.0,0.06552]
[1731180967821,0.19547731,76271.0,76270.0,0.06552]
[1731180971119,0.26099631,76271.0,76270.0,0.06552]
[1731180972534,0.065521,76269.0,76268.0,0.2001]
[1731180972728,0.13063101,76269.0,76268.0,0.2001]
[1731180972926,0.32691365,76269.0,76268.0,0.2001]
[1731180974938,0.32691365,76269.0,76268.0,0.15419862]
[1731180976132,0.68771365,76269.0,76268.0,0.15419862]
[1731180976336,0.66485478,76269.0,76268.0,0.15419862]
[1731180976529,0.68881883,76269.0,76268.0,0.15419862]
[1731180976734,0.66422583,76269.0,76268.0,0.15419862]
[1731180977341,0.66422583,76269.0,76268.0,0.21972062]
[1731180978432,0.66422583,76269.0,76268.0,0.17382062]
[1731180978629,0.66422583,76269.0,76268.0,0.20004393]
[1731180978841,0.62260364,76269.0,76268.0,0.20004393]
[1731180981941,0.69569918,76269.0,76268.0,0.13452193]
[1731180982142,0.065526,76264.0,76257.0,0.0322]
[1731180982449,0.3608,76258.0,76246.0,0.06554]
[1731180982638,0.07309554,76249.0,76246.0,0.11144]
[1731180982839,0.07309554,76249.0,76246.0,0.13490262]
[1731180983041,0.07309554,76253.0,76246.0,0.13490262]
[1731180983440,0.19706099,76252.0,76246.0,0.13490262]
[1731180984949,0.07309554,76248.0,76246.0,0.13490262]
[1731180985142,0.02725055,76247.0,76246.0,0.13490262]
[1731180992241,0.07309554,76248.0,76246.0,0.13490262]
[1731180992455,0.02715162,76247.0,76246.0,0.13490262]
[1731180992650,0.22368162,76247.0,76246.0,0.13490262]
[1731180993956,0.19653,76247.0,76246.0,0.13490262]
[1731180998157,0.22383829,76247.0,76246.0,0.06936262]
[1731180999952,0.19653,76247.0,76246.0,0.06936262]
[1731181000160,0.22387282,76247.0,76246.0,0.06936262]
[1731181000457,0.19653,76247.0,76246.0,0.06936262]
[1731181000852,0.22387577,76247.0,76246.0,0.06936262]
[1731181001449,0.22387577,76247.0,76246.0,0.13490362]
[1731181002049,0.19653,76247.0,76246.0,0.13490362]
[1731181004956,0.22365587,76247.0,76246.0,0.13490362]
[1731181005754,0.29675141,76247.0,76246.0,0.13490362]
[1731181006365,0.26962554,76247.0,76246.0,0.13490362]
[1731181006866,0.43496288,76247.0,76246.0,0.06936262]
[1731181007060,0.43568332,76247.0,76246.0,0.0459]
[1731181007258,0.40826108,76247.0,76246.0,0.0459]
[1731181007564,0.43568564,76247.0,76246.0,0.0459]
[1731181008159,0.40826108,76247.0,76246.0,0.0459]
[1731181008562,0.36292715,76247.0,76246.0,0.0459]
[1731181009862,0.40412762,76247.0,76246.0,0.0459]
[1731181010056,0.36292715,76247.0,76246.0,0.111441]
[1731181011067,0.22429161,76247.0,76246.0,0.111441]
[1731181011459,0.19653,76247.0,76246.0,0.111441]
[1731181012164,0.19653,76247.0,76246.0,0.13490362]
[1731181015162,0.73620108,76247.0,76234.0,0.07095268]
[1731181015472,0.43389554,76239.0,76237.0,0.065548]
[1731181015873,0.1971972,76238.0,76237.0,0.065548]
[1731181016167,0.22374594,76238.0,76237.0,0.065548]
[1731181016567,0.28929394,76238.0,76237.0,0.065548]
[1731181018578,1.05116148,76238.0,76226.0,0.03920267]
[1731181018770,0.065559,76225.0,76223.0,0.07169372]
[1731181019068,0.07309554,76224.0,76223.0,0.08902262]
[1731181019767,0.3608,76227.0,76226.0,0.065558]
[1731181020077,0.55809596,76227.0,76226.0,0.065558]
[1731181020268,0.58965855,76227.0,76226.0,0.08902062]
[1731181020965,0.55809596,76227.0,76226.0,0.08902062]
[1731181022469,0.19729596,76227.0,76226.0,0.08902062]
[1731181024384,0.3608,76231.0,76226.0,0.08902062]
[1731181024572,0.3608,76231.0,76230.0,0.065554]
[1731181024973,0.55733463,76231.0,76230.0,0.065554]
[1731181025178,0.62288863,76231.0,76230.0,0.065554]
[1731181025476,0.065555,76230.0,76227.0,0.03931347]
[1731181025675,0.065555,76230.0,76227.0,0.02346262]
[1731181025875,0.19645915,76229.0,76227.0,0.02346262]
[1731181026068,0.19645915,76229.0,76228.0,0.065556]
[1731181027387,0.19645915,76229.0,76222.0,0.0315]
[1731181027672,0.43389554,76223.0,76215.0,0.03931347]
[1731181027869,0.07309554,76216.0,76213.0,0.065569]
[1731181028065,0.02634805,76215.0,76214.0,0.065568]
[1731181028271,0.22333401,76215.0,76214.0,0.065568]
[1731181028471,0.19698596,76215.0,76214.0,0.08903062]
[1731181028973,0.2240492,76215.0,76214.0,0.08903062]
[1731181029364,0.19698596,76215.0,76214.0,0.08903062]
[1731181035480,0.19698596,76215.0,76214.0,0.02346262]
[1731181035666,0.6308815,76215.0,76206.0,0.0328]
[1731181035872,0.07309554,76207.0,76196.0,0.3911]
[1731181036175,0.26347099,76206.0,76205.0,0.09100564]
[1731181037378,0.37759847,76206.0,76205.0,0.09100564]
[1731181039389,0.31202347,76206.0,76205.0,0.09100564]
[1731181041570,0.19789599,76206.0,76205.0,0.09100564]
[1731181041972,0.19578503,76207.0,76205.0,0.02543064]
[1731181042172,0.3608,76208.0,76206.0,0.065575]
[1731181042477,0.19812558,76207.0,76205.0,0.02543064]
[1731181042778,0.3608,76216.0,76205.0,0.02543064]
[1731181042978,0.3608,76216.0,76215.0,0.065567]
[1731181043172,0.55892558,76216.0,76215.0,0.065567]
[1731181047381,0.58570987,76216.0,76215.0,0.065567]
[1731181047681,0.55892558,76216.0,76215.0,0.065567]
[1731181048175,0.58572928,76216.0,76215.0,0.065567]
[1731181048571,0.58572928,76216.0,76215.0,0.08902962]
[1731181048771,0.22492928,76216.0,76215.0,0.08902962]
[1731181049278,0.0268037,76216.0,76215.0,0.08902962]
[1731181049586,0.3608,76223.0,76215.0,0.02346262]
[1731181049888,0.3608,76223.0,76222.0,0.065561]
[1731181050280,0.5586799,76223.0,76222.0,0.065561]
[1731181050479,0.58544815,76223.0,76222.0,0.08902362]
[1731181050991,0.61724685,76223.0,76222.0,0.08902362]
[1731181052280,0.00196889,76231.0,76222.0,0.08902362]
[1731181052487,0.00196889,76231.0,76230.0,0.065554]
[1731181052679,0.00196889,76231.0,76223.0,0.062]
[1731181052680,0.17968348,76229.0,76227.0,0.065557]
[1731181052875,0.45333465,76228.0,76227.0,0.065557]
[1731181053081,0.02697865,76228.0,76227.0,0.065557]
[1731181055488,0.11412748,76229.0,76223.0,0.0312]
[1731181055689,0.3608,76230.0,76223.0,0.05466262]
[1731181056694,0.3608,76230.0,76229.0,0.065555]
[1731181057189,0.3608,76230.0,76229.0,0.08901762]
[1731181058694,0.55806404,76230.0,76229.0,0.08901762]
[1731181058892,0.62361804,76230.0,76229.0,0.08901762]
[1731181059398,0.69683263,76230.0,76229.0,0.065555]
[1731181059693,0.72422952,76230.0,76229.0,0.065555]
[1731181061295,0.65867552,76230.0,76223.0,0.0312]
[1731181061493,0.065557,76228.0,76227.0,0.065557]
[1731181061796,0.13299995,76228.0,76227.0,0.065557]
[1731181061995,0.33088349,76228.0,76227.0,0.065557]
[1731181062596,0.29083743,76228.0,76227.0,0.065557]
[1731181062796,0.06556,76224.0,76223.0,0.06556]
[1731181062997,0.16617148,76224.0,76223.0,0.06556]
[1731181063198,0.3627288,76224.0,76223.0,0.06556]
[1731181063500,0.065564,76219.0,76218.0,0.065564]
[1731181063791,0.36324598,76219.0,76218.0,0.065564]
[1731181063993,0.36324598,76219.0,76218.0,0.08902662]
[1731181064394,0.065566,76217.0,76215.0,0.02624155]
[1731181064594,0.09296289,76216.0,76215.0,0.02624155]
[1731181064789,0.28948823,76216.0,76215.0,0.02624155]
[1731181066693,0.36270282,76216.0,76215.0,0.02624155]
[1731181067085,0.76304595,76216.0,76215.0,0.02624155]
[1731181067296,0.76304595,76216.0,76215.0,0.00586699]
[1731181067595,0.82534595,76216.0,76215.0,0.00586699]
[1731181069203,0.78580282,76216.0,76215.0,0.00586699]
[1731181072801,0.75840593,76216.0,76215.0,0.00586699]
[1731181073693,0.78650225,76216.0,76215.0,0.00586699]
[1731181076197,0.82585842,76216.0,76215.0,0.00586699]
[1731181078093,0.82585842,76216.0,76215.0,0.00135954]
[1731181078305,1.18665842,76216.0,76215.0,0.00135954]
[1731181079903,1.18658599,76216.0,76215.0,0.00135954]
[1731181084100,1.18652912,76216.0,76215.0,0.00135954]
[1731181084305,1.14730225,76216.0,76215.0,0.00135954]
[1731181090612,1.14730225,76216.0,76215.0,0.00032901]
[1731181091201,0.065579,76201.0,76200.0,0.1]
[1731181091399,1.10206009,76201.0,76189.0,0.0328]
[1731181091608,0.13880359,76190.0,76189.0,0.0328]
[1731181091804,0.16689991,76190.0,76189.0,0.0328]
[1731181092010,0.36444984,76190.0,76189.0,0.0328]
[1731181092402,0.36444984,76190.0,76184.0,0.00069]
[1731181092403,0.065593,76185.0,76184.0,0.00069]
[1731181092603,0.2401185,76185.0,76184.0,0.00069]
[1731181092803,0.43728263,76185.0,76184.0,0.00069]
[1731181094514,0.46854341,76185.0,76184.0,0.00069]
[1731181094812,0.46854341,76185.0,76167.0,0.065608]
[1731181094813,0.065599,76179.0,76167.0,0.065608]
[1731181095008,0.3608,76177.0,76173.0,0.098803]
[1731181095308,0.19668795,76176.0,76174.0,0.065602]
[1731181095617,0.19668795,76176.0,76175.0,0.065602]
[1731181095802,0.14678795,76176.0,76175.0,0.065602]
[1731181096002,0.07321459,76181.0,76175.0,0.08906462]
[1731181096311,0.3608,76194.0,76175.0,0.08906462]
[1731181096312,0.22472076,76180.0,76179.0,0.065598]
[1731181096808,0.09980912,76180.0,76179.0,0.08906062]
[1731181097014,0.29608094,76180.0,76179.0,0.08906062]
[1731181097209,0.26948641,76180.0,76179.0,0.08906062]
[1731181097598,0.07321459,76180.0,76179.0,0.08906062]
[1731181098912,0.07321459,76180.0,76179.0,0.02346262]
[1731181098913,0.02788454,76180.0,76179.0,0.02346262]
[1731181099211,0.07321459,76180.0,76179.0,0.02346262]
[1731181099437,0.3608,76187.0,76185.0,0.065593]
[1731181099438,0.11417641,76186.0,76185.0,0.065593]
[1731181099615,0.14328572,76186.0,76185.0,0.065593]
[1731181099912,0.34149876,76186.0,76185.0,0.08905562]
[1731181102213,0.11417641,76199.0,76185.0,0.38426262]
[1731181102513,0.13276,76201.0,76200.0,0.06558]
[1731181102717,0.24693641,76201.0,76200.0,0.06558]
[1731181102903,0.24693641,76201.0,76200.0,0.08904262]
[1731181102904,0.31235593,76201.0,76200.0,0.08904262]
[1731181105419,0.37793493,76201.0,76200.0,0.08904262]
[1731181106317,0.37793493,76201.0,76200.0,0.01705478]
[1731181106704,0.37793493,76201.0,76200.0,0.08263478]
[1731181107104,0.37793493,76201.0,76200.0,0.01705478]
[1731181107825,0.42653234,76201.0,76176.0,0.3608]
[1731181108120,0.11417641,76181.0,76180.0,0.065597]
[1731181108318,0.11417641,76181.0,76180.0,0.08265178]
[1731181109618,0.11417641,76187.0,76186.0,0.065592]
[1731181109913,0.31157169,76187.0,76186.0,0.065592]
[1731181110115,0.31157169,76187.0,76186.0,0.08264678]
[1731181112318,0.33945483,76187.0,76186.0,0.08264678]
[1731181118219,0.22527842,76187.0,76186.0,0.08264678]
[1731181121713,0.19739528,76187.0,76186.0,0.08264678]
[1731181123316,0.22441744,76187.0,76186.0,0.08264678]
[1731181124220,0.19739528,76187.0,76186.0,0.08264678]
[1731181126123,0.22422871,76187.0,76186.0,0.08264678]
[1731181126321,0.19739528,76187.0,76186.0,0.08264678]
[1731181126527,0.22423062,76187.0,76186.0,0.08264678]
[1731181127638,0.02683534,76187.0,76186.0,0.08264678]
[1731181129630,0.02683534,76187.0,76186.0,0.51569841]
[1731181129823,0.02683534,76187.0,76186.0,0.47640678]
[1731181130019,0.3669,76202.0,76201.0,0.065579]
[1731181130216,0.38580096,76202.0,76201.0,0.065579]
[1731181131626,0.00076,76217.0,76216.0,0.065566]
[1731181131831,0.07328688,76218.0,76217.0,0.065566]
[1731181132239,0.27008232,76218.0,76217.0,0.065566]
[1731181132429,0.27008232,76218.0,76208.0,0.43408688]
[1731181132430,0.0330678,76221.0,76215.0,0.3608]
[1731181132732,0.0330678,76221.0,76220.0,0.065563]
[1731181133226,0.23083001,76221.0,76220.0,0.065563]
[1731181134028,0.19973148,76221.0,76220.0,0.065563]
[1731181136430,0.23889388,76221.0,76220.0,0.065563]
[1731181138432,0.065546,76240.0,76232.0,0.065553]
[1731181138638,0.03971932,76234.0,76232.0,0.065553]
[1731181138825,0.19550294,76233.0,76232.0,0.065553]
[1731181139024,0.03994525,76233.0,76232.0,0.065553]
[1731181139334,0.19550294,76233.0,76227.0,0.1140665]
[1731181139535,0.03238078,76240.0,76232.0,0.065553]
[1731181139734,0.065549,76237.0,76235.0,0.06555]
[1731181140032,0.23693713,76236.0,76235.0,0.06555]
[1731181140241,0.23696474,76236.0,76235.0,0.06555]
[1731181140629,0.19697363,76236.0,76235.0,0.06555]
[1731181142741,0.23722931,76236.0,76235.0,0.06555]
[1731181142946,0.26215837,76236.0,76235.0,0.06555]
[1731181143447,0.22190269,76236.0,76235.0,0.06555]
[1731181144137,0.02492906,76236.0,76235.0,0.06555]
[1731181145136,0.02492906,76236.0,76235.0,0.09178466]
[1731181145344,0.02492906,76236.0,76235.0,0.78530466]
[1731181145529,0.0968,76254.0,76235.0,0.71975466]
[1731181145734,0.0968,76254.0,76238.0,0.1140665]
[1731181145933,0.0968,76254.0,76245.0,0.3608]
[1731181145934,0.19747112,76253.0,76245.0,0.3608]
[1731181146833,0.19747112,76253.0,76251.0,0.065536]
[1731181148634,0.19747112,76253.0,76252.0,0.065535]
[1731181149644,0.19747112,76253.0,76245.0,0.3608]
[1731181149949,0.065536,76251.0,76248.0,0.065539]
[1731181150240,0.588933,76249.0,76227.0,0.3608]
[1731181150435,0.1796155,76236.0,76230.0,0.065554]
[1731181150630,0.1796155,76236.0,76216.0,0.3608]
[1731181150942,0.46844912,76236.0,76216.0,0.3608]
[1731181151141,0.46844912,76236.0,76222.0,0.065561]
[1731181151345,0.46844912,76236.0,76221.0,0.00196759]
[1731181151346,0.83557918,76236.0,76221.0,0.00196759]
[1731181151540,0.1796275,76223.0,76221.0,0.00196759]
[1731181151841,0.19619203,76222.0,76221.0,0.00196759]
[1731181155541,0.25913254,76222.0,76221.0,0.00196759]
[1731181155846,0.32469354,76222.0,76221.0,0.00196759]
[1731181156246,0.28590799,76222.0,76221.0,0.00196759]
[1731181156646,0.32480344,76222.0,76221.0,0.00196759]
[1731181158444,0.28590799,76222.0,76221.0,0.00196759]
[1731181159441,0.22034699,76222.0,76221.0,0.00196759]
[1731181159640,0.22027427,76222.0,76221.0,0.00196759]
[1731181159940,0.3608,76232.0,76221.0,0.00196759]
[1731181159941,0.3608,76232.0,76228.0,0.065556]
[1731181160147,0.3608,76232.0,76229.0,0.065555]
[1731181160148,0.02408327,76231.0,76229.0,0.065555]
[1731181160349,0.02408327,76230.0,76229.0,0.065555]
[1731181160750,0.22206462,76230.0,76229.0,0.065555]
[1731181162148,0.22206462,76230.0,76221.0,0.00196759]
[1731181162149,0.065561,76223.0,76221.0,0.00196759]
[1731181162345,0.38488327,76222.0,76221.0,0.00196759]
[1731181162535,0.58294119,76222.0,76221.0,0.00196759]
[1731181164635,0.64850219,76222.0,76221.0,0.00196759]
[1731181165849,0.62441892,76222.0,76221.0,0.00196759]
[1731181166639,0.62441892,76222.0,76221.0,0.06752959]
[1731181168854,0.65670658,76222.0,76221.0,0.06752959]
[1731181174857,0.3608,76222.0,76221.0,0.06752959]
[1731181175057,0.065557,76227.0,76221.0,0.00196759]
[1731181175257,0.09656071,76227.0,76226.0,0.065558]
[1731181175758,0.29266377,76227.0,76226.0,0.065558]
[1731181176262,0.19610306,76227.0,76226.0,0.065558]
[1731181176650,0.2284403,76231.0,76226.0,0.065558]
[1731181176849,0.19649018,76230.0,76226.0,0.065558]
[1731181177059,0.1140665,76231.0,76221.0,0.00196759]
[1731181177264,0.5404275,76223.0,76221.0,0.00196759]
[1731181177648,0.19779415,76222.0,76221.0,0.00196759]
[1731181178962,0.23472085,76222.0,76221.0,0.00196759]
[1731181180255,0.25775741,76222.0,76221.0,0.00196759]
[1731181180647,0.23472085,76222.0,76221.0,0.00196759]
[1731181181255,0.25650428,76222.0,76221.0,0.00196759]
[1731181181663,0.19779415,76222.0,76221.0,0.00196759]
[1731181184661,0.21924701,76222.0,76221.0,0.00196759]
[1731181188464,0.02145286,76222.0,76221.0,0.00196759]
[1731181188664,0.3608,76232.0,76231.0,0.065554]
[1731181188853,0.39786492,76232.0,76231.0,0.065554]
[1731181189164,0.59421255,76232.0,76231.0,0.065554]
[1731181189756,0.61536158,76232.0,76231.0,0.065554]
[1731181190470,0.25456158,76232.0,76231.0,0.065554]
[1731181190968,0.03145265,76235.0,76234.0,0.065551]
[1731181191165,0.065548,76238.0,76236.0,0.065549]
[1731181191367,0.05877541,76237.0,76236.0,0.065549]
[1731181191565,0.25461247,76237.0,76236.0,0.065549]
[1731181193270,0.21714153,76237.0,76236.0,0.065549]
[1731181193474,0.19583706,76237.0,76236.0,0.065549]
[1731181193958,0.26138506,76237.0,76236.0,0.065549]
[1731181194159,0.32005796,76237.0,76236.0,0.065549]
[1731181194565,0.28260266,76237.0,76236.0,0.065549]
[1731181194969,0.21705466,76237.0,76236.0,0.065549]
[1731181196874,0.19583706,76237.0,76236.0,0.065549]
[1731181198974,0.03109814,76238.0,76228.0,0.1140665]
[1731181199175,0.00196851,76239.0,76237.0,0.065548]
[1731181199362,0.00196851,76239.0,76238.0,0.065548]
[1731181199567,0.03416291,76239.0,76238.0,0.065548]
[1731181199873,0.00196851,76239.0,76238.0,0.065548]
[1731181200174,0.00196851,76239.0,76238.0,0.459068]
[1731181200367,0.00196851,76239.0,76238.0,0.5731345]
[1731181201577,0.065538,76250.0,76238.0,0.39352]
[1731181201761,0.1140665,76240.0,76234.0,0.3608]
[1731181201960,0.3608,76236.0,76223.0,0.5281]
[1731181202166,0.1140665,76232.0,76231.0,0.065553]
[1731181202672,0.31118829,76232.0,76231.0,0.065553]
[1731181204369,0.19712179,76232.0,76231.0,0.065553]
[1731181204668,0.065551,76234.0,76223.0,0.5273]
[1731181204669,0.19564309,76233.0,76223.0,0.5273]
[1731181204873,0.19564309,76233.0,76232.0,0.065553]
[1731181205078,0.065551,76234.0,76233.0,0.065552]
[1731181205473,0.26310782,76234.0,76233.0,0.065552]
[1731181206374,0.065553,76232.0,76223.0,0.5273]
[1731181206570,0.19755682,76234.0,76233.0,0.065552]
[1731181206773,0.03145784,76235.0,76223.0,0.0302]
[1731181206774,0.19551211,76231.0,76230.0,0.065554]
[1731181206965,0.3608,76236.0,76223.0,0.0302]
[1731181206966,0.19764319,76234.0,76223.0,0.0302]
[1731181207167,0.19764319,76234.0,76233.0,0.065552]
[1731181207366,0.39198575,76236.0,76234.0,0.065551]
[1731181207367,0.19764319,76235.0,76234.0,0.065551]
[1731181207577,0.39198575,76236.0,76234.0,0.065551]
[1731181207879,0.19764319,76235.0,76234.0,0.065551]
[1731181212368,0.065542,76245.0,76237.0,0.065548]
[1731181212568,0.05884156,76244.0,76243.0,0.065543]
[1731181212771,0.25471248,76244.0,76243.0,0.065543]
[1731181212974,0.02181039,76244.0,76243.0,0.065543]
[1731181213472,0.0619,76251.0,76250.0,0.065537]
[1731181213680,0.13080037,76251.0,76250.0,0.065537]
[1731181213879,0.32656376,76251.0,76250.0,0.065537]
[1731181214478,0.25786878,76251.0,76250.0,0.065537]
[1731181215083,0.065539,76248.0,76246.0,0.06554]
[1731181215472,0.065539,76248.0,76228.0,0.13068]
[1731181215473,0.065547,76239.0,76236.0,0.065549]
[1731181215683,0.065548,76237.0,76236.0,0.065549]
[1731181215866,0.065552,76234.0,76222.0,0.0319]
[1731181216072,0.065552,76234.0,76232.0,0.065552]
[1731181216073,0.1796185,76234.0,76232.0,0.065552]
[1731181216280,0.21804621,76233.0,76232.0,0.065552]
[1731181216580,0.25489172,76233.0,76232.0,0.065552]